[Event "Late-Titled-Tuesday-Blitz-August-29-2023"]
[Site "Chess.com"]
[Date "2023.08.29"]
[Round "4"]
[White "Kleyton_Lima"]
[Black "enriquetejedor"]
[Result "0-1"]
[WhiteElo "2520"]
[BlackElo "2701"]
[TimeControl "180+1"]
[EndTime "14:39:52 PDT"]
[Termination "enriquetejedor won by resignation"]

1. d4 {[%clk 0:03:00.9]} 1... d6 {[%clk 0:02:53.6]} 2. e4 {[%clk 0:03:00.4]}
2... Nf6 {[%clk 0:02:50.7]} 3. Nc3 {[%clk 0:03:00.9]} 3... e5 {[%clk 0:02:48.2]}
4. Nge2 {[%clk 0:02:59.4]} 4... Be7 {[%clk 0:02:44]} 5. h3 {[%clk 0:02:57.3]}
5... h5 {[%clk 0:02:41.7]} 6. g3 {[%clk 0:02:56.4]} 6... c6 {[%clk 0:02:41.1]}
7. a4 {[%clk 0:02:52.3]} 7... b6 {[%clk 0:02:40.4]} 8. Bg2 {[%clk 0:02:51.3]}
8... a6 {[%clk 0:02:38.3]} 9. O-O {[%clk 0:02:50.6]} 9... Bb7 {[%clk 0:02:36.5]}
10. Be3 {[%clk 0:02:47.9]} 10... Nbd7 {[%clk 0:02:35.1]} 11. Qd2 {[%clk
0:02:47.8]} 11... O-O {[%clk 0:02:31.3]} 12. f4 {[%clk 0:02:47.5]} 12... b5
{[%clk 0:02:14.8]} 13. axb5 {[%clk 0:02:45.5]} 13... axb5 {[%clk 0:02:15.7]} 14.
Rad1 {[%clk 0:02:42.9]} 14... b4 {[%clk 0:02:15]} 15. Nb1 {[%clk 0:02:41.9]}
15... exd4 {[%clk 0:02:12.5]} 16. Nxd4 {[%clk 0:02:32]} 16... c5 {[%clk
0:02:11.5]} 17. Nf5 {[%clk 0:02:05.5]} 17... Nxe4 {[%clk 0:02:09.8]} 18. Qe2
{[%clk 0:02:02.7]} 18... Ndf6 {[%clk 0:02:02.6]} 19. Bxc5 {[%clk 0:01:56.2]}
19... Re8 {[%clk 0:01:42.3]} 20. Be3 {[%clk 0:01:52.3]} 20... d5 {[%clk
0:01:39.1]} 21. Rfe1 {[%clk 0:01:49.2]} 21... Bf8 {[%clk 0:01:35.3]} 22. Kh2
{[%clk 0:01:43.6]} 22... g6 {[%clk 0:01:34.4]} 23. Nd4 {[%clk 0:01:39]} 23...
Ra2 {[%clk 0:01:29]} 24. b3 {[%clk 0:01:39.5]} 24... Qc7 {[%clk 0:01:25.9]} 25.
Qf3 {[%clk 0:01:35.8]} 25... Bc8 {[%clk 0:01:19.1]} 26. Nd2 {[%clk 0:01:32.7]}
26... Nc3 {[%clk 0:00:56]} 27. Rc1 {[%clk 0:01:32.4]} 27... Nfe4 {[%clk
0:00:50.4]} 28. Nf1 {[%clk 0:01:26.5]} 28... h4 {[%clk 0:00:48.4]} 29. Ra1
{[%clk 0:01:22.9]} 29... hxg3+ {[%clk 0:00:47.2]} 30. Nxg3 {[%clk 0:01:19.3]}
30... Rxa1 {[%clk 0:00:46.5]} 31. Rxa1 {[%clk 0:01:18.3]} 31... Bd6 {[%clk
0:00:41.8]} 32. Kh1 {[%clk 0:01:14.7]} 32... Nxg3+ {[%clk 0:00:32.2]} 33. Qxg3
{[%clk 0:01:15.6]} 33... Qe7 {[%clk 0:00:32.3]} 34. Bf2 {[%clk 0:01:08.6]} 34...
Ne4 {[%clk 0:00:32]} 35. Bxe4 {[%clk 0:01:05]} 35... Qxe4+ {[%clk 0:00:31.7]}
36. Qf3 {[%clk 0:01:05.9]} 36... Qxf3+ {[%clk 0:00:23.9]} 37. Nxf3 {[%clk
0:01:06.8]} 37... Bxh3 {[%clk 0:00:24]} 38. Kh2 {[%clk 0:01:07.4]} 38... Bf5
{[%clk 0:00:22.4]} 39. Kg3 {[%clk 0:01:07.1]} 39... Re4 {[%clk 0:00:20.8]} 40.
Ra8+ {[%clk 0:01:03.3]} 40... Kg7 {[%clk 0:00:17]} 41. Bd4+ {[%clk 0:01:03.6]}
41... f6 {[%clk 0:00:17.1]} 42. Ra7+ {[%clk 0:01:01.6]} 42... Kf8 {[%clk
0:00:17]} 43. Bxf6 {[%clk 0:00:55.1]} 43... Bxf4+ {[%clk 0:00:16.9]} 44. Kg2
{[%clk 0:00:55.7]} 44... Re2+ {[%clk 0:00:16.4]} 45. Kf1 {[%clk 0:00:52]} 45...
Rxc2 {[%clk 0:00:17]} 46. Ne5 {[%clk 0:00:52]} 46... Bxe5 {[%clk 0:00:15.7]} 47.
Bxe5 {[%clk 0:00:52.2]} 47... Ke8 {[%clk 0:00:13.5]} 48. Rc7 {[%clk 0:00:49.5]}
48... Rd2 {[%clk 0:00:09.7]} 49. Bd6 {[%clk 0:00:49.8]} 49... Rd3 {[%clk
0:00:09]} 50. Bxb4 {[%clk 0:00:43.6]} 50... Rxb3 {[%clk 0:00:08.6]} 51. Bc5
{[%clk 0:00:43.9]} 51... Be4 {[%clk 0:00:07.8]} 52. Kf2 {[%clk 0:00:40.3]} 52...
Rf3+ {[%clk 0:00:07.8]} 53. Ke2 {[%clk 0:00:40.2]} 53... Rf5 {[%clk 0:00:08.7]}
54. Ke3 {[%clk 0:00:34.7]} 54... Kd8 {[%clk 0:00:09.2]} 55. Rg7 {[%clk
0:00:34.4]} 55... Kc8 {[%clk 0:00:07]} 56. Kd4 {[%clk 0:00:34.4]} 56... Rf6
{[%clk 0:00:06.4]} 57. Ke5 {[%clk 0:00:30.3]} 57... Rc6 {[%clk 0:00:06.3]} 58.
Bd4 {[%clk 0:00:29.3]} 58... Kb8 {[%clk 0:00:05.1]} 59. Rd7 {[%clk 0:00:25.1]}
59... Rc7 {[%clk 0:00:04.4]} 60. Rxc7 {[%clk 0:00:18.2]} 60... Kxc7 {[%clk
0:00:05.3]} 61. Bc5 {[%clk 0:00:18.7]} 61... Kc6 {[%clk 0:00:05.3]} 62. Kd4
{[%clk 0:00:19.1]} 62... Kd7 {[%clk 0:00:05.3]} 63. Bb4 {[%clk 0:00:17.5]} 63...
Ke6 {[%clk 0:00:05.6]} 64. Bd2 {[%clk 0:00:18]} 64... Kf5 {[%clk 0:00:05.7]} 65.
Ke3 {[%clk 0:00:18.2]} 65... Kg4 {[%clk 0:00:04]} 66. Bc3 {[%clk 0:00:16.9]}
66... Bc2 {[%clk 0:00:04]} 67. Be5 {[%clk 0:00:14.4]} 67... Bb3 {[%clk
0:00:04.3]} 68. Bd4 {[%clk 0:00:14.5]} 68... Bc4 {[%clk 0:00:04.5]} 69. Be5
{[%clk 0:00:14.8]} 69... Ba2 {[%clk 0:00:05.1]} 70. Bd4 {[%clk 0:00:15.2]} 70...
Kf5 {[%clk 0:00:05.7]} 71. Kf3 {[%clk 0:00:15.1]} 71... g5 {[%clk 0:00:04.9]}
72. Be3 {[%clk 0:00:15.1]} 72... Bc4 {[%clk 0:00:05.1]} 73. Bc5 {[%clk 0:00:13]}
73... Ba6 {[%clk 0:00:05.6]} 74. Be3 {[%clk 0:00:12.9]} 74... Bc8 {[%clk
0:00:05.1]} 75. Bf2 {[%clk 0:00:13]} 75... Bb7 {[%clk 0:00:04.7]} 76. Be3 {[%clk
0:00:13.2]} 76... d4+ {[%clk 0:00:04.9]} 0-1

[Event "Late-Titled-Tuesday-Blitz-August-29-2023"]
[Site "Chess.com"]
[Date "2023.08.29"]
[Round "4"]
[White "Duhless"]
[Black "Byniolus"]
[Result "0-1"]
[WhiteElo "3018"]
[BlackElo "2884"]
[TimeControl "180+1"]
[EndTime "14:40:01 PDT"]
[Termination "Byniolus won by checkmate"]

1. e4 {[%clk 0:03:00]} 1... d6 {[%clk 0:02:59.6]} 2. d4 {[%clk 0:03:00.2]} 2...
Nf6 {[%clk 0:03:00.5]} 3. Nc3 {[%clk 0:03:00.7]} 3... c6 {[%clk 0:03:00.8]} 4.
f4 {[%clk 0:03:00.6]} 4... Qb6 {[%clk 0:03:01]} 5. e5 {[%clk 0:02:56.5]} 5...
Nd5 {[%clk 0:03:00.6]} 6. Nxd5 {[%clk 0:02:52.6]} 6... cxd5 {[%clk 0:03:01.5]}
7. c3 {[%clk 0:02:50]} 7... Bf5 {[%clk 0:03:01.1]} 8. Bd3 {[%clk 0:02:46.1]}
8... g6 {[%clk 0:03:01.4]} 9. Nf3 {[%clk 0:02:43.2]} 9... e6 {[%clk 0:03:00.2]}
10. O-O {[%clk 0:02:42.2]} 10... Nc6 {[%clk 0:02:58]} 11. Rb1 {[%clk 0:02:31.1]}
11... Be7 {[%clk 0:02:55.4]} 12. Be3 {[%clk 0:02:31.3]} 12... O-O-O {[%clk
0:02:51.1]} 13. b4 {[%clk 0:02:21.3]} 13... Kb8 {[%clk 0:02:51.3]} 14. a4 {[%clk
0:02:20.2]} 14... Rc8 {[%clk 0:02:49.9]} 15. a5 {[%clk 0:02:15.7]} 15... Qd8
{[%clk 0:02:43.7]} 16. Bxf5 {[%clk 0:02:10.6]} 16... gxf5 {[%clk 0:02:43.2]} 17.
Rf2 {[%clk 0:02:02.7]} 17... Ka8 {[%clk 0:02:33.8]} 18. Ra2 {[%clk 0:01:58.2]}
18... Qd7 {[%clk 0:02:26.5]} 19. Ne1 {[%clk 0:01:48.2]} 19... Nb8 {[%clk
0:02:12.8]} 20. Rc1 {[%clk 0:01:43]} 20... Na6 {[%clk 0:01:53]} 21. Nd3 {[%clk
0:01:43]} 21... Nc7 {[%clk 0:01:53.1]} 22. exd6 {[%clk 0:01:38]} 22... Bxd6
{[%clk 0:01:54]} 23. Nc5 {[%clk 0:01:38.4]} 23... Qc6 {[%clk 0:01:49.6]} 24. Qd3
{[%clk 0:01:35.4]} 24... Qb5 {[%clk 0:01:42.1]} 25. Qd2 {[%clk 0:01:30.3]} 25...
Qc4 {[%clk 0:01:38.4]} 26. Rac2 {[%clk 0:01:28.1]} 26... Nb5 {[%clk 0:01:37.4]}
27. Qd1 {[%clk 0:01:26.6]} 27... h5 {[%clk 0:01:33.5]} 28. Ra1 {[%clk 0:01:13]}
28... Be7 {[%clk 0:01:28.8]} 29. Kh1 {[%clk 0:01:06]} 29... h4 {[%clk
0:01:28.7]} 30. Nd7 {[%clk 0:01:00.9]} 30... Qc6 {[%clk 0:01:04]} 31. Ne5 {[%clk
0:00:47.8]} 31... Qe8 {[%clk 0:01:03.8]} 32. c4 {[%clk 0:00:44.9]} 32... dxc4
{[%clk 0:00:41]} 33. a6 {[%clk 0:00:44.5]} 33... Bxb4 {[%clk 0:00:13.4]} 34. Qf3
{[%clk 0:00:35.4]} 34... Rc7 {[%clk 0:00:13]} 35. Nxc4 {[%clk 0:00:34.1]} 35...
Qc6 {[%clk 0:00:05.7]} 36. axb7+ {[%clk 0:00:32.8]} 36... Qxb7 {[%clk
0:00:05.7]} 37. d5 {[%clk 0:00:22.8]} 37... Rhc8 {[%clk 0:00:04.5]} 38. Nb6+
{[%clk 0:00:08.7]} 38... Kb8 {[%clk 0:00:04.9]} 39. Nxc8 {[%clk 0:00:07.9]}
39... Rxc2 {[%clk 0:00:04.6]} 40. Nxa7 {[%clk 0:00:07.9]} 40... Nxa7 {[%clk
0:00:04.4]} 41. Rxa7 {[%clk 0:00:06.7]} 41... Qxd5 {[%clk 0:00:02.7]} 42. Qxd5
{[%clk 0:00:04.3]} 42... exd5 {[%clk 0:00:03.6]} 43. Rxf7 {[%clk 0:00:03.8]}
43... Re2 {[%clk 0:00:03.5]} 44. Ba7+ {[%clk 0:00:03.2]} 44... Ka8 {[%clk
0:00:02.8]} 45. Kg1 {[%clk 0:00:02.6]} 45... Bc3 {[%clk 0:00:02.5]} 46. Kf1
{[%clk 0:00:02.8]} 46... Ra2 {[%clk 0:00:02.7]} 47. Bc5 {[%clk 0:00:03.1]} 47...
d4 {[%clk 0:00:03.6]} 48. Rd7 {[%clk 0:00:03.3]} 48... Ra1+ {[%clk 0:00:02.8]}
49. Ke2 {[%clk 0:00:03.8]} 49... Ra2+ {[%clk 0:00:02.7]} 50. Kd3 {[%clk
0:00:03.7]} 50... Rxg2 {[%clk 0:00:02.7]} 51. Kc4 {[%clk 0:00:03.7]} 51... Rxh2
{[%clk 0:00:02.5]} 52. Kb5 {[%clk 0:00:03.7]} 52... Rb2+ {[%clk 0:00:02.4]} 53.
Kc6 {[%clk 0:00:03.7]} 53... h3 {[%clk 0:00:01.7]} 54. Ra7+ {[%clk 0:00:03.5]}
54... Kb8 {[%clk 0:00:01.9]} 55. Rh7 {[%clk 0:00:03.8]} 55... Ka8 {[%clk
0:00:02]} 56. Rxh3 {[%clk 0:00:04.2]} 56... Rb8 {[%clk 0:00:02.3]} 57. Rh7
{[%clk 0:00:03.7]} 57... Rc8+ {[%clk 0:00:02.9]} 58. Kb5 {[%clk 0:00:03.9]}
58... d3 {[%clk 0:00:03.1]} 59. Ra7+ {[%clk 0:00:03.8]} 59... Kb8 {[%clk
0:00:03.7]} 60. Rd7 {[%clk 0:00:04.4]} 60... d2 {[%clk 0:00:04.3]} 61. Bd6+
{[%clk 0:00:04.5]} 61... Ka8 {[%clk 0:00:04.8]} 62. Ka6 {[%clk 0:00:04]} 62...
Bd4 {[%clk 0:00:04.1]} 63. Bc7 {[%clk 0:00:02.9]} 63... d1=Q {[%clk 0:00:03.6]}
64. Bb6 {[%clk 0:00:03.8]} 64... Qa4+ {[%clk 0:00:03.7]} 65. Ba5 {[%clk
0:00:04.1]} 65... Qxd7 {[%clk 0:00:04]} 66. Bc7 {[%clk 0:00:04]} 66... Qc6+
{[%clk 0:00:03.7]} 67. Bb6 {[%clk 0:00:04.4]} 67... Qb7+ {[%clk 0:00:03.6]} 68.
Kb5 {[%clk 0:00:04.4]} 68... Qxb6+ {[%clk 0:00:04]} 69. Ka4 {[%clk 0:00:04.4]}
69... Rc4+ {[%clk 0:00:04.2]} 70. Ka3 {[%clk 0:00:04.7]} 70... Bc5+ {[%clk
0:00:04.8]} 71. Ka2 {[%clk 0:00:04.7]} 71... Ra4# {[%clk 0:00:05.7]} 0-1

[Event "Late-Titled-Tuesday-Blitz-August-29-2023"]
[Site "Chess.com"]
[Date "2023.08.29"]
[Round "4"]
[White "bascheyaro"]
[Black "BogdanDeac"]
[Result "1/2-1/2"]
[WhiteElo "2817"]
[BlackElo "3018"]
[TimeControl "180+1"]
[EndTime "14:40:03 PDT"]
[Termination "Game drawn - insufficient material"]

1. d4 {[%clk 0:02:53.3]} 1... Nf6 {[%clk 0:02:59.5]} 2. Nf3 {[%clk 0:02:53.4]}
2... d5 {[%clk 0:02:59]} 3. c4 {[%clk 0:02:53.5]} 3... e6 {[%clk 0:02:59]} 4.
Nc3 {[%clk 0:02:54]} 4... Be7 {[%clk 0:02:59]} 5. Bg5 {[%clk 0:02:53.8]} 5... h6
{[%clk 0:02:58.6]} 6. Bh4 {[%clk 0:02:54]} 6... dxc4 {[%clk 0:02:58.4]} 7. e3
{[%clk 0:02:54.1]} 7... c5 {[%clk 0:02:58.6]} 8. dxc5 {[%clk 0:02:53.3]} 8...
Qa5 {[%clk 0:02:53.1]} 9. Bxc4 {[%clk 0:02:49.3]} 9... Qxc5 {[%clk 0:02:50.9]}
10. Bb5+ {[%clk 0:02:39.1]} 10... Bd7 {[%clk 0:02:49.8]} 11. Qd4 {[%clk
0:02:25.8]} 11... Qxd4 {[%clk 0:02:36.4]} 12. Nxd4 {[%clk 0:02:25.6]} 12... a6
{[%clk 0:02:36.5]} 13. Be2 {[%clk 0:02:24]} 13... Nc6 {[%clk 0:02:09.9]} 14. Bf3
{[%clk 0:02:23.7]} 14... Nxd4 {[%clk 0:01:05.4]} 15. exd4 {[%clk 0:02:24.6]}
15... Bc6 {[%clk 0:01:05.8]} 16. Bxc6+ {[%clk 0:02:23.8]} 16... bxc6 {[%clk
0:01:06.7]} 17. O-O-O {[%clk 0:02:23.3]} 17... Rb8 {[%clk 0:01:02.6]} 18. f3
{[%clk 0:02:15.6]} 18... Kd7 {[%clk 0:00:51.7]} 19. Rhe1 {[%clk 0:02:06.3]}
19... Rhc8 {[%clk 0:00:46.1]} 20. Kc2 {[%clk 0:01:56.6]} 20... Nd5 {[%clk
0:00:42.9]} 21. Bxe7 {[%clk 0:01:56.2]} 21... Kxe7 {[%clk 0:00:43.8]} 22. Ne4
{[%clk 0:01:50]} 22... a5 {[%clk 0:00:37.1]} 23. Nc5 {[%clk 0:01:48.7]} 23...
Rb5 {[%clk 0:00:37.3]} 24. b3 {[%clk 0:01:47.2]} 24... g5 {[%clk 0:00:34.8]} 25.
g3 {[%clk 0:01:43.7]} 25... Rg8 {[%clk 0:00:33.3]} 26. Kb2 {[%clk 0:01:38.9]}
26... Kd6 {[%clk 0:00:32.2]} 27. Rd2 {[%clk 0:01:32.4]} 27... Ra8 {[%clk
0:00:30.2]} 28. Kc1 {[%clk 0:01:19.2]} 28... Rb4 {[%clk 0:00:25.5]} 29. Re4
{[%clk 0:01:11.3]} 29... Rg8 {[%clk 0:00:20.5]} 30. Kb2 {[%clk 0:01:08.3]} 30...
Ke7 {[%clk 0:00:19.6]} 31. Re1 {[%clk 0:01:05.6]} 31... h5 {[%clk 0:00:18.1]}
32. Re5 {[%clk 0:01:03.5]} 32... h4 {[%clk 0:00:15.4]} 33. a3 {[%clk 0:01:00.1]}
33... Rb5 {[%clk 0:00:13.2]} 34. Rg2 {[%clk 0:00:59]} 34... hxg3 {[%clk
0:00:08.7]} 35. hxg3 {[%clk 0:00:59.2]} 35... Nf6 {[%clk 0:00:04.3]} 36. Rge2
{[%clk 0:00:48.6]} 36... Nd5 {[%clk 0:00:02.9]} 37. Kc2 {[%clk 0:00:44.2]} 37...
g4 {[%clk 0:00:02.8]} 38. f4 {[%clk 0:00:44.2]} 38... Kd6 {[%clk 0:00:03.3]} 39.
f5 {[%clk 0:00:43]} 39... Nc7 {[%clk 0:00:03.5]} 40. Ne4+ {[%clk 0:00:41.1]}
40... Ke7 {[%clk 0:00:03.6]} 41. Nc5 {[%clk 0:00:38.3]} 41... Rd8 {[%clk
0:00:03.5]} 42. fxe6 {[%clk 0:00:37.6]} 42... fxe6 {[%clk 0:00:03.6]} 43. a4
{[%clk 0:00:35.1]} 43... Rb4 {[%clk 0:00:03.1]} 44. Nxe6 {[%clk 0:00:35.6]}
44... Nxe6 {[%clk 0:00:03.5]} 45. Rxe6+ {[%clk 0:00:36.5]} 45... Kd7 {[%clk
0:00:04.2]} 46. Re7+ {[%clk 0:00:35.1]} 46... Kc8 {[%clk 0:00:04.2]} 47. R2e6
{[%clk 0:00:33.4]} 47... Rbxd4 {[%clk 0:00:03.4]} 48. Rxc6+ {[%clk 0:00:33.7]}
48... Kb8 {[%clk 0:00:04]} 49. Rb6+ {[%clk 0:00:33.7]} 49... Kc8 {[%clk
0:00:04.4]} 50. Ra6 {[%clk 0:00:27.5]} 50... Rd2+ {[%clk 0:00:04.5]} 51. Kc1
{[%clk 0:00:19.3]} 51... Kb8 {[%clk 0:00:04.2]} 52. Rxa5 {[%clk 0:00:18.8]}
52... Ra2 {[%clk 0:00:04.2]} 53. Rb5+ {[%clk 0:00:18.7]} 53... Kc8 {[%clk
0:00:04.1]} 54. Rc5+ {[%clk 0:00:19]} 54... Kb8 {[%clk 0:00:04.4]} 55. Rc2
{[%clk 0:00:19.4]} 55... Ra1+ {[%clk 0:00:04.5]} 56. Kb2 {[%clk 0:00:19.9]}
56... Rg1 {[%clk 0:00:05.1]} 57. Re3 {[%clk 0:00:18.8]} 57... Rf8 {[%clk
0:00:05.4]} 58. a5 {[%clk 0:00:18.5]} 58... Rf3 {[%clk 0:00:05.5]} 59. Rxf3
{[%clk 0:00:16.3]} 59... gxf3 {[%clk 0:00:06.4]} 60. Kc3 {[%clk 0:00:16.3]}
60... Rxg3 {[%clk 0:00:06.2]} 61. Rf2 {[%clk 0:00:16.3]} 61... Kb7 {[%clk
0:00:06]} 62. Kb4 {[%clk 0:00:14.3]} 62... Rg4+ {[%clk 0:00:04.7]} 63. Kb5
{[%clk 0:00:14.6]} 63... Rg5+ {[%clk 0:00:04.6]} 64. Ka4 {[%clk 0:00:14.8]}
64... Rg3 {[%clk 0:00:05]} 65. b4 {[%clk 0:00:14.8]} 65... Rh3 {[%clk 0:00:05]}
66. Rf1 {[%clk 0:00:15]} 66... Rg3 {[%clk 0:00:05.3]} 67. Kb3 {[%clk 0:00:14.3]}
67... Ka6 {[%clk 0:00:05]} 68. Ka4 {[%clk 0:00:14.1]} 68... Kb7 {[%clk
0:00:05.6]} 69. Rh1 {[%clk 0:00:14.4]} 69... Rg7 {[%clk 0:00:05.2]} 70. Rh2
{[%clk 0:00:13.3]} 70... Rf7 {[%clk 0:00:05.3]} 71. Rf2 {[%clk 0:00:13.7]} 71...
Rf4 {[%clk 0:00:05.9]} 72. Kb5 {[%clk 0:00:13.9]} 72... Rf5+ {[%clk 0:00:06.1]}
73. Kc4 {[%clk 0:00:14]} 73... Ka6 {[%clk 0:00:06]} 74. Kd3 {[%clk 0:00:13.8]}
74... Rf4 {[%clk 0:00:06.4]} 75. Kc3 {[%clk 0:00:10.8]} 75... Kb5 {[%clk
0:00:06.2]} 76. a6 {[%clk 0:00:10.4]} 76... Kxa6 {[%clk 0:00:06.1]} 77. Kd3
{[%clk 0:00:10.9]} 77... Kb5 {[%clk 0:00:06.4]} 78. Ke3 {[%clk 0:00:11.5]} 78...
Rxb4 {[%clk 0:00:07.1]} 79. Rxf3 {[%clk 0:00:12]} 79... Rb3+ {[%clk 0:00:07.5]}
80. Kf2 {[%clk 0:00:12.9]} 80... Rxf3+ {[%clk 0:00:08.4]} 81. Kxf3 {[%clk
0:00:13.8]} 1/2-1/2

[Event "Late-Titled-Tuesday-Blitz-August-29-2023"]
[Site "Chess.com"]
[Date "2023.08.29"]
[Round "4"]
[White "EstudiandoAjedrezRD"]
[Black "Herman-NY"]
[Result "0-1"]
[WhiteElo "2222"]
[BlackElo "2441"]
[TimeControl "180+1"]
[EndTime "14:40:06 PDT"]
[Termination "Herman-NY won by resignation"]

1. d4 {[%clk 0:03:00.9]} 1... Nf6 {[%clk 0:02:59.4]} 2. c4 {[%clk 0:02:59.6]}
2... g6 {[%clk 0:02:59.6]} 3. Nf3 {[%clk 0:02:59.3]} 3... Bg7 {[%clk 0:03:00.1]}
4. g3 {[%clk 0:03:00]} 4... O-O {[%clk 0:03:00.6]} 5. Bg2 {[%clk 0:03:00.6]}
5... d6 {[%clk 0:03:01.4]} 6. O-O {[%clk 0:03:00.6]} 6... c5 {[%clk 0:03:02]} 7.
d5 {[%clk 0:03:00]} 7... e6 {[%clk 0:03:00.8]} 8. Nc3 {[%clk 0:02:59.4]} 8...
exd5 {[%clk 0:03:01]} 9. cxd5 {[%clk 0:03:00.3]} 9... Re8 {[%clk 0:03:01.6]} 10.
Nd2 {[%clk 0:02:58.5]} 10... b6 {[%clk 0:02:59.7]} 11. a4 {[%clk 0:02:53.5]}
11... Ba6 {[%clk 0:03:00]} 12. Re1 {[%clk 0:02:51.6]} 12... Nbd7 {[%clk
0:02:59.8]} 13. h3 {[%clk 0:02:50.8]} 13... Nh5 {[%clk 0:02:54]} 14. Kh2 {[%clk
0:02:48.8]} 14... f5 {[%clk 0:02:30.9]} 15. Nf3 {[%clk 0:02:23.6]} 15... Bf6
{[%clk 0:02:13.4]} 16. Bh6 {[%clk 0:02:17.2]} 16... Ne5 {[%clk 0:02:12.1]} 17.
Qc1 {[%clk 0:02:12.4]} 17... Nf7 {[%clk 0:02:00.8]} 18. Bd2 {[%clk 0:01:59.4]}
18... g5 {[%clk 0:01:28.6]} 19. g4 {[%clk 0:01:33.1]} 19... Ng7 {[%clk
0:01:05.3]} 20. e4 {[%clk 0:01:11]} 20... f4 {[%clk 0:00:57.5]} 21. Nb5 {[%clk
0:01:00.2]} 21... Ne5 {[%clk 0:00:53.3]} 22. Nxe5 {[%clk 0:00:55.6]} 22... Bxe5
{[%clk 0:00:52.9]} 23. f3 {[%clk 0:00:55.9]} 23... h5 {[%clk 0:00:42.2]} 24. Bc3
{[%clk 0:00:50.9]} 24... Bxb5 {[%clk 0:00:36.4]} 25. axb5 {[%clk 0:00:50.2]}
25... Qf6 {[%clk 0:00:31.7]} 26. Rd1 {[%clk 0:00:47.5]} 26... Re7 {[%clk
0:00:31.7]} 27. Kg1 {[%clk 0:00:46.2]} 27... Kf7 {[%clk 0:00:31.4]} 28. Bf1
{[%clk 0:00:45.4]} 28... Rh8 {[%clk 0:00:30.9]} 29. Bxe5 {[%clk 0:00:34.9]}
29... Qxe5 {[%clk 0:00:29.1]} 30. Qc3 {[%clk 0:00:34.3]} 30... Kf6 {[%clk
0:00:25.8]} 31. Qxe5+ {[%clk 0:00:30.2]} 31... Kxe5 {[%clk 0:00:26.7]} 32. Ra3
{[%clk 0:00:24]} 32... Ne8 {[%clk 0:00:25.2]} 33. Rda1 {[%clk 0:00:20.1]} 33...
Rhh7 {[%clk 0:00:25.6]} 34. Ra4 {[%clk 0:00:18.7]} 34... Nf6 {[%clk 0:00:24.7]}
35. Kf2 {[%clk 0:00:18.2]} 35... Rb7 {[%clk 0:00:23.1]} 36. Kg2 {[%clk
0:00:15.3]} 36... Rhc7 {[%clk 0:00:22.6]} 37. b3 {[%clk 0:00:14.5]} 37... Nd7
{[%clk 0:00:21.5]} 38. Bc4 {[%clk 0:00:14.3]} 38... Kf6 {[%clk 0:00:21.5]} 39.
Rh1 {[%clk 0:00:14.3]} 39... Ne5 {[%clk 0:00:21.6]} 40. Raa1 {[%clk 0:00:12.4]}
40... Rh7 {[%clk 0:00:21.8]} 41. Rh2 {[%clk 0:00:12.2]} 41... Rh6 {[%clk
0:00:22.1]} 42. Rah1 {[%clk 0:00:11.6]} 42... Rbh7 {[%clk 0:00:22.3]} 43. Be2
{[%clk 0:00:09.9]} 43... Ke7 {[%clk 0:00:20.6]} 44. Bc4 {[%clk 0:00:10]} 44...
Kd8 {[%clk 0:00:20.8]} 45. Be2 {[%clk 0:00:07]} 45... Kc7 {[%clk 0:00:21]} 46.
Bc4 {[%clk 0:00:07.3]} 46... Kb7 {[%clk 0:00:21.3]} 47. Be2 {[%clk 0:00:07]}
47... Ng6 {[%clk 0:00:18.3]} 48. Bc4 {[%clk 0:00:05.9]} 48... Nh4+ {[%clk
0:00:18.1]} 49. Kf2 {[%clk 0:00:06.4]} 49... Re7 {[%clk 0:00:18.2]} 50. Ra1
{[%clk 0:00:05.6]} 50... Kb8 {[%clk 0:00:18.7]} 51. Rhh1 {[%clk 0:00:05.7]}
51... Reh7 {[%clk 0:00:14.6]} 52. Rh2 {[%clk 0:00:04.9]} 52... Ng6 {[%clk
0:00:15.1]} 53. Rah1 {[%clk 0:00:05]} 53... hxg4 {[%clk 0:00:13.8]} 54. fxg4
{[%clk 0:00:04.7]} 54... Ne5 {[%clk 0:00:14.4]} 55. Kg2 {[%clk 0:00:03.4]} 55...
Rh4 {[%clk 0:00:12.1]} 56. Be2 {[%clk 0:00:03.4]} 56... Kb7 {[%clk 0:00:11.4]}
57. Bc4 {[%clk 0:00:02.7]} 57... Kc8 {[%clk 0:00:11.3]} 58. Be2 {[%clk
0:00:03.4]} 58... Kd8 {[%clk 0:00:11.9]} 59. Bc4 {[%clk 0:00:04.1]} 59... Ke7
{[%clk 0:00:12.4]} 60. Be2 {[%clk 0:00:04.9]} 60... Kf6 {[%clk 0:00:13]} 61. Bc4
{[%clk 0:00:05.6]} 61... Ng6 {[%clk 0:00:09.5]} 62. Be2 {[%clk 0:00:06.3]} 62...
Ke5 {[%clk 0:00:09.5]} 63. Kf3 {[%clk 0:00:06.6]} 63... Kd4 {[%clk 0:00:08.8]}
64. Bc4 {[%clk 0:00:06.8]} 64... Ne5+ {[%clk 0:00:08.9]} 65. Kg2 {[%clk
0:00:06.2]} 65... Kc3 {[%clk 0:00:07.2]} 66. Rc1+ {[%clk 0:00:06]} 66... Kd2
{[%clk 0:00:07.1]} 67. Rch1 {[%clk 0:00:06.9]} 67... Nxg4 {[%clk 0:00:03.1]} 68.
Kf1+ {[%clk 0:00:07.8]} 68... Nxh2+ {[%clk 0:00:02.7]} 69. Rxh2+ {[%clk
0:00:08.5]} 69... Ke3 {[%clk 0:00:03.4]} 70. Re2+ {[%clk 0:00:08.4]} 70... Kd4
{[%clk 0:00:03.8]} 71. Rd2+ {[%clk 0:00:08.7]} 71... Ke5 {[%clk 0:00:04.7]} 72.
Re2 {[%clk 0:00:09.2]} 72... Rxh3 {[%clk 0:00:05.2]} 73. Rf2 {[%clk 0:00:09.7]}
73... Rh1+ {[%clk 0:00:05.9]} 74. Ke2 {[%clk 0:00:10.2]} 74... R7h2 {[%clk
0:00:06.6]} 75. Kf3 {[%clk 0:00:10.1]} 75... Rxf2+ {[%clk 0:00:07.1]} 76. Kxf2
{[%clk 0:00:10.5]} 76... g4 {[%clk 0:00:08]} 77. Kg2 {[%clk 0:00:11.2]} 77...
Rh4 {[%clk 0:00:08.2]} 78. Kf2 {[%clk 0:00:11.3]} 78... f3 {[%clk 0:00:08.9]}
79. Kg3 {[%clk 0:00:11.5]} 79... Rh3+ {[%clk 0:00:08.9]} 80. Kxg4 {[%clk
0:00:11.7]} 80... Rh2 {[%clk 0:00:09.1]} 81. Kxf3 {[%clk 0:00:11.9]} 81... Rd2
{[%clk 0:00:09.9]} 82. Ke3 {[%clk 0:00:12.3]} 82... Rd4 {[%clk 0:00:10.8]} 83.
Ke2 {[%clk 0:00:12.5]} 83... Rxe4+ {[%clk 0:00:11.3]} 84. Kd3 {[%clk 0:00:13.2]}
84... Rd4+ {[%clk 0:00:12.2]} 85. Kc3 {[%clk 0:00:13.5]} 85... Kf4 {[%clk
0:00:12.8]} 86. b4 {[%clk 0:00:12.3]} 86... Ke3 {[%clk 0:00:13.2]} 87. bxc5
{[%clk 0:00:12.7]} 87... bxc5 {[%clk 0:00:13.7]} 88. b6 {[%clk 0:00:12.9]} 88...
axb6 {[%clk 0:00:13.9]} 89. Bb5 {[%clk 0:00:13.6]} 89... Rb4 {[%clk 0:00:13.9]}
90. Bc6 {[%clk 0:00:14.5]} 90... Ke4 {[%clk 0:00:13.6]} 91. Kc2 {[%clk
0:00:14.4]} 91... Ke5 {[%clk 0:00:14.5]} 92. Kc3 {[%clk 0:00:14.8]} 92... Rd4
{[%clk 0:00:14.9]} 93. Kb3 {[%clk 0:00:14.5]} 93... Rxd5 {[%clk 0:00:15.8]} 94.
Kc4 {[%clk 0:00:14.6]} 94... Rd4+ {[%clk 0:00:16.3]} 95. Kb5 {[%clk 0:00:15.1]}
95... Rb4+ {[%clk 0:00:17.2]} 96. Ka6 {[%clk 0:00:15.5]} 96... d5 {[%clk
0:00:18.1]} 97. Kb7 {[%clk 0:00:15.4]} 97... d4 {[%clk 0:00:19]} 98. Kc7 {[%clk
0:00:15.8]} 98... d3 {[%clk 0:00:19.5]} 0-1